[Event "Early-Titled-Tuesday-Blitz-October-03-2023"]
[Site "Chess.com"]
[Date "2023.10.03"]
[Round "10"]
[White "Actuary44"]
[Black "MokshAD1603"]
[Result "1-0"]
[WhiteElo "2517"]
[BlackElo "2593"]
[TimeControl "180+1"]
[EndTime "10:00:10 PDT"]
[Termination "Actuary44 won by checkmate"]

1. e4 {[%clk 0:03:00.9]} 1... c5 {[%clk 0:02:52.3]} 2. d4 {[%clk 0:03:01.1]}
2... cxd4 {[%clk 0:02:52.2]} 3. c3 {[%clk 0:03:01.7]} 3... d5 {[%clk 0:02:48.2]}
4. exd5 {[%clk 0:03:00.6]} 4... Qxd5 {[%clk 0:02:47.1]} 5. cxd4 {[%clk
0:03:01.2]} 5... Nc6 {[%clk 0:02:43.3]} 6. Nf3 {[%clk 0:03:01.6]} 6... Bg4
{[%clk 0:02:42.9]} 7. Be2 {[%clk 0:03:01.4]} 7... Nf6 {[%clk 0:02:40.2]} 8. Nc3
{[%clk 0:03:02]} 8... Qa5 {[%clk 0:02:38.6]} 9. O-O {[%clk 0:03:02.3]} 9... e6
{[%clk 0:02:37.7]} 10. h3 {[%clk 0:03:00.1]} 10... Bh5 {[%clk 0:02:37.6]} 11.
Be3 {[%clk 0:02:59.1]} 11... Be7 {[%clk 0:02:37.2]} 12. Qb3 {[%clk 0:02:58.2]}
12... O-O {[%clk 0:02:29.2]} 13. Qxb7 {[%clk 0:02:52.7]} 13... Rfc8 {[%clk
0:02:29]} 14. Qb5 {[%clk 0:02:50]} 14... Rab8 {[%clk 0:02:26.4]} 15. Qxa5 {[%clk
0:02:49.8]} 15... Nxa5 {[%clk 0:02:27.3]} 16. Rab1 {[%clk 0:02:45.5]} 16... Bg6
{[%clk 0:02:25.7]} 17. Rbc1 {[%clk 0:02:41.7]} 17... Kf8 {[%clk 0:02:11.6]} 18.
Ba6 {[%clk 0:02:36.1]} 18... Rc6 {[%clk 0:02:09.4]} 19. Bb5 {[%clk 0:02:35.8]}
19... Rxc3 {[%clk 0:01:58.4]} 20. Rxc3 {[%clk 0:02:31.4]} 20... Rxb5 {[%clk
0:01:58.7]} 21. Rc8+ {[%clk 0:02:29.6]} 21... Ne8 {[%clk 0:01:59.3]} 22. Ne5
{[%clk 0:02:24.4]} 22... Bd6 {[%clk 0:01:56.6]} 23. b3 {[%clk 0:01:46.2]} 23...
Ke7 {[%clk 0:01:37.3]} 24. Rfc1 {[%clk 0:01:41.1]} 24... Be4 {[%clk 0:01:33.2]}
25. f3 {[%clk 0:01:31.2]} 25... Bb7 {[%clk 0:01:32.1]} 26. R8c2 {[%clk 0:01:00]}
26... Nf6 {[%clk 0:01:25.2]} 27. Rc7+ {[%clk 0:00:49.5]} 27... Bxc7 {[%clk
0:01:22.7]} 28. Rxc7+ {[%clk 0:00:50.4]} 28... Kd8 {[%clk 0:01:11.4]} 29. Rxf7
{[%clk 0:00:50]} 29... Nc6 {[%clk 0:01:03.1]} 30. Rxg7 {[%clk 0:00:41.4]} 30...
Nd5 {[%clk 0:00:49.7]} 31. Bg5+ {[%clk 0:00:31.8]} 31... Kc8 {[%clk 0:00:48.8]}
32. Nc4 {[%clk 0:00:31.5]} 32... Rb4 {[%clk 0:00:43.1]} 33. Rxh7 {[%clk
0:00:17.7]} 33... Ba6 {[%clk 0:00:41.5]} 34. Nd6+ {[%clk 0:00:17.1]} 34... Kb8
{[%clk 0:00:42]} 35. h4 {[%clk 0:00:14.3]} 35... Rxd4 {[%clk 0:00:42]} 36. h5
{[%clk 0:00:12.9]} 36... Bd3 {[%clk 0:00:37.3]} 37. Rh8+ {[%clk 0:00:12.5]}
37... Kc7 {[%clk 0:00:37.5]} 38. Ne8+ {[%clk 0:00:13.1]} 38... Kd7 {[%clk
0:00:36.3]} 39. h6 {[%clk 0:00:13.3]} 39... Bg6 {[%clk 0:00:31.6]} 40. Nf6+
{[%clk 0:00:13.2]} 40... Nxf6 {[%clk 0:00:30.7]} 41. Bxf6 {[%clk 0:00:14.1]}
41... Rf4 {[%clk 0:00:27.6]} 42. h7 {[%clk 0:00:10.6]} 42... Bxh7 {[%clk
0:00:25.1]} 43. Rxh7+ {[%clk 0:00:11.5]} 43... Kd6 {[%clk 0:00:25.3]} 44. Bc3
{[%clk 0:00:11.7]} 44... Rf5 {[%clk 0:00:21.6]} 45. Kf2 {[%clk 0:00:12]} 45...
Rc5 {[%clk 0:00:22.2]} 46. Bd2 {[%clk 0:00:11.8]} 46... Rc2 {[%clk 0:00:23.1]}
47. Ke2 {[%clk 0:00:12.3]} 47... Rxa2 {[%clk 0:00:23.8]} 48. Kd3 {[%clk
0:00:12.9]} 48... Rb2 {[%clk 0:00:22.4]} 49. Kc3 {[%clk 0:00:13.3]} 49... Ra2
{[%clk 0:00:21.8]} 50. g4 {[%clk 0:00:13]} 50... Ne5 {[%clk 0:00:20.9]} 51. Bf4
{[%clk 0:00:13.2]} 51... Kd5 {[%clk 0:00:20.4]} 52. g5 {[%clk 0:00:12.5]} 52...
Nxf3 {[%clk 0:00:18.4]} 53. g6 {[%clk 0:00:13]} 53... Rg2 {[%clk 0:00:18.2]} 54.
g7 {[%clk 0:00:11.2]} 54... e5 {[%clk 0:00:18.7]} 55. Bh6 {[%clk 0:00:11.2]}
55... Nd4 {[%clk 0:00:16.7]} 56. Rh8 {[%clk 0:00:10.3]} 56... Nf5 {[%clk
0:00:10.1]} 57. g8=Q+ {[%clk 0:00:08.2]} 57... Rxg8 {[%clk 0:00:11]} 58. Rxg8
{[%clk 0:00:08.5]} 58... Nxh6 {[%clk 0:00:11.9]} 59. Rd8+ {[%clk 0:00:08.7]}
59... Ke6 {[%clk 0:00:11.9]} 60. Ra8 {[%clk 0:00:08.5]} 60... Nf5 {[%clk
0:00:12.8]} 61. Rxa7 {[%clk 0:00:08.8]} 61... Nd6 {[%clk 0:00:12.5]} 62. Ra8
{[%clk 0:00:08.9]} 62... Kd5 {[%clk 0:00:12.2]} 63. b4 {[%clk 0:00:09.4]} 63...
e4 {[%clk 0:00:12.6]} 64. Rd8 {[%clk 0:00:09.1]} 64... Kc6 {[%clk 0:00:11.4]}
65. Kd4 {[%clk 0:00:08.6]} 65... Kc7 {[%clk 0:00:11.9]} 66. Rh8 {[%clk 0:00:08]}
66... Kc6 {[%clk 0:00:12.4]} 67. Rh6 {[%clk 0:00:07]} 67... Kc7 {[%clk
0:00:12.9]} 68. Kd5 {[%clk 0:00:07.3]} 68... Nf5 {[%clk 0:00:12.4]} 69. Rh7+
{[%clk 0:00:06.9]} 69... Kb6 {[%clk 0:00:13.1]} 70. Kxe4 {[%clk 0:00:06.2]}
70... Nd6+ {[%clk 0:00:14]} 71. Kd5 {[%clk 0:00:06.5]} 71... Nb5 {[%clk
0:00:14.6]} 72. Kc4 {[%clk 0:00:06.7]} 72... Nd6+ {[%clk 0:00:14.7]} 73. Kd5
{[%clk 0:00:07.2]} 73... Nb7 {[%clk 0:00:15.2]} 74. Rh6+ {[%clk 0:00:05.6]}
74... Kb5 {[%clk 0:00:15.6]} 75. Rh7 {[%clk 0:00:06.2]} 75... Nd8 {[%clk
0:00:15]} 76. Kd6 {[%clk 0:00:04.8]} 76... Nc6 {[%clk 0:00:13.1]} 77. Rh5+
{[%clk 0:00:04.3]} 77... Kb6 {[%clk 0:00:12.7]} 78. b5 {[%clk 0:00:04.9]} 78...
Nd4 {[%clk 0:00:12.9]} 79. Kd5 {[%clk 0:00:04.5]} 79... Nxb5 {[%clk 0:00:13.3]}
80. Kc4 {[%clk 0:00:05.1]} 80... Nd6+ {[%clk 0:00:13.6]} 81. Kb4 {[%clk
0:00:05.8]} 81... Kc6 {[%clk 0:00:13.8]} 82. Rh6 {[%clk 0:00:06.3]} 82... Kd5
{[%clk 0:00:14]} 83. Rh5+ {[%clk 0:00:07]} 83... Kc6 {[%clk 0:00:14]} 84. Kc3
{[%clk 0:00:06.7]} 84... Nb5+ {[%clk 0:00:13.9]} 85. Kc4 {[%clk 0:00:07.1]}
85... Nd6+ {[%clk 0:00:14.6]} 86. Kd4 {[%clk 0:00:07.9]} 86... Nb5+ {[%clk
0:00:15.2]} 87. Ke5 {[%clk 0:00:07.7]} 87... Kc5 {[%clk 0:00:15.8]} 88. Rh1
{[%clk 0:00:08.3]} 88... Nd6 {[%clk 0:00:14.2]} 89. Rc1+ {[%clk 0:00:09.2]}
89... Nc4+ {[%clk 0:00:14.8]} 90. Ke4 {[%clk 0:00:09.4]} 90... Kb5 {[%clk
0:00:13.5]} 91. Kd4 {[%clk 0:00:10]} 91... Nb6 {[%clk 0:00:14.4]} 92. Rb1+
{[%clk 0:00:09.4]} 92... Kc6 {[%clk 0:00:14.7]} 93. Rc1+ {[%clk 0:00:09.5]}
93... Kd6 {[%clk 0:00:14.8]} 94. Rh1 {[%clk 0:00:08.6]} 94... Kc6 {[%clk
0:00:15.3]} 95. Rh5 {[%clk 0:00:07.6]} 95... Kd6 {[%clk 0:00:15.3]} 96. Rh6+
{[%clk 0:00:07.5]} 96... Kc7 {[%clk 0:00:15.7]} 97. Kc5 {[%clk 0:00:08]} 97...
Nd7+ {[%clk 0:00:16.3]} 98. Kb5 {[%clk 0:00:08.3]} 98... Kd8 {[%clk 0:00:15.7]}
99. Rh7 {[%clk 0:00:07.5]} 99... Nf6 {[%clk 0:00:15]} 100. Rf7 {[%clk 0:00:07]}
100... Nd7 {[%clk 0:00:14.2]} 101. Rg7 {[%clk 0:00:06.7]} 101... Ke8 {[%clk
0:00:13.2]} 102. Kc6 {[%clk 0:00:07.1]} 102... Nf6 {[%clk 0:00:10.8]} 103. Kd6
{[%clk 0:00:06.8]} 103... Kf8 {[%clk 0:00:11.5]} 104. Ra7 {[%clk 0:00:06.2]}
104... Ne8+ {[%clk 0:00:11.5]} 105. Ke6 {[%clk 0:00:06.4]} 105... Ng7+ {[%clk
0:00:10]} 106. Kf6 {[%clk 0:00:06.9]} 106... Ne8+ {[%clk 0:00:10.9]} 107. Kg6
{[%clk 0:00:07.5]} 107... Kg8 {[%clk 0:00:10.8]} 108. Ra8 {[%clk 0:00:07.2]}
108... Kf8 {[%clk 0:00:11.3]} 109. Ra7 {[%clk 0:00:07.1]} 109... Kg8 {[%clk
0:00:11.3]} 110. Rf7 {[%clk 0:00:07.2]} 110... Nd6 {[%clk 0:00:10.6]} 111. Rd7
{[%clk 0:00:06.8]} 111... Ne8 {[%clk 0:00:10.3]} 112. Re7 {[%clk 0:00:05.4]}
112... Kf8 {[%clk 0:00:10.6]} 113. Rf7+ {[%clk 0:00:06]} 113... Kg8 {[%clk
0:00:10.9]} 114. Rf4 {[%clk 0:00:06.2]} 114... Nd6 {[%clk 0:00:11]} 115. Rd4
{[%clk 0:00:06.2]} 115... Ne8 {[%clk 0:00:11.4]} 116. Re4 {[%clk 0:00:06.8]}
116... Nd6 {[%clk 0:00:11.4]} 117. Re6 {[%clk 0:00:05.8]} 117... Nf5 {[%clk
0:00:06.6]} 118. Re8# {[%clk 0:00:05.7]} 1-0

[Event "Early-Titled-Tuesday-Blitz-October-03-2023"]
[Site "Chess.com"]
[Date "2023.10.03"]
[Round "11"]
[White "LeoWin2012"]
[Black "Aleksandar-Topalov"]
[Result "1-0"]
[WhiteElo "2330"]
[BlackElo "2403"]
[TimeControl "180+1"]
[EndTime "10:02:02 PDT"]
[Termination "LeoWin2012 won by resignation"]

1. e4 {[%clk 0:02:25.7]} 1... e6 {[%clk 0:02:58.2]} 2. d4 {[%clk 0:02:25.2]}
2... d5 {[%clk 0:02:57.7]} 3. exd5 {[%clk 0:02:25.6]} 3... exd5 {[%clk
0:02:57.8]} 4. Bd3 {[%clk 0:02:25.4]} 4... Bd6 {[%clk 0:02:57.5]} 5. Nf3 {[%clk
0:02:21.7]} 5... Ne7 {[%clk 0:02:55.6]} 6. h3 {[%clk 0:02:20.6]} 6... f6 {[%clk
0:02:55.4]} 7. O-O {[%clk 0:02:20.3]} 7... O-O {[%clk 0:02:55.6]} 8. c4 {[%clk
0:02:19.8]} 8... c6 {[%clk 0:02:52.4]} 9. Nc3 {[%clk 0:02:19.4]} 9... Be6 {[%clk
0:02:52.2]} 10. Re1 {[%clk 0:02:19.3]} 10... Bf7 {[%clk 0:02:52.3]} 11. Qe2
{[%clk 0:02:18.2]} 11... Nd7 {[%clk 0:02:47.2]} 12. c5 {[%clk 0:02:17.7]} 1-0

[Event "Early-Titled-Tuesday-Blitz-October-03-2023"]
[Site "Chess.com"]
[Date "2023.10.03"]
[Round "11"]
[White "LeoLV10"]
[Black "Mysterio47"]
[Result "0-1"]
[WhiteElo "2583"]
[BlackElo "2719"]
[TimeControl "180+1"]
[EndTime "10:03:38 PDT"]
[Termination "Mysterio47 won by resignation"]

1. e4 {[%clk 0:03:00.9]} 1... e5 {[%clk 0:02:59.6]} 2. Nf3 {[%clk 0:03:01]} 2...
Nc6 {[%clk 0:02:59.7]} 3. Bb5 {[%clk 0:03:00.8]} 3... a6 {[%clk 0:02:59.7]} 4.
Ba4 {[%clk 0:03:01.3]} 4... Nf6 {[%clk 0:03:00.2]} 5. O-O {[%clk 0:03:02]} 5...
Be7 {[%clk 0:03:00.8]} 6. c3 {[%clk 0:03:00.6]} 6... Nxe4 {[%clk 0:02:59.3]} 7.
Re1 {[%clk 0:03:00.5]} 7... Nc5 {[%clk 0:02:53.3]} 8. Bxc6 {[%clk 0:02:53.8]}
8... dxc6 {[%clk 0:02:52.9]} 9. Nxe5 {[%clk 0:02:54.4]} 9... Be6 {[%clk
0:02:52.4]} 10. d4 {[%clk 0:02:53.8]} 10... Nd7 {[%clk 0:02:52.7]} 11. Nxd7
{[%clk 0:02:53.7]} 11... Qxd7 {[%clk 0:02:53.6]} 12. Bf4 {[%clk 0:02:50.7]}
12... O-O {[%clk 0:02:54.2]} 13. Nd2 {[%clk 0:02:50.8]} 13... Rfe8 {[%clk
0:02:54.2]} 14. Nf3 {[%clk 0:02:51]} 14... Bd5 {[%clk 0:02:52.5]} 15. Ne5 {[%clk
0:02:48.8]} 15... Qf5 {[%clk 0:02:52.2]} 16. Bg3 {[%clk 0:02:49.4]} 16... Bd6
{[%clk 0:02:48.8]} 17. Qd3 {[%clk 0:02:48.1]} 17... Rxe5 {[%clk 0:02:41.3]} 18.
dxe5 {[%clk 0:02:25.1]} 18... Qxd3 {[%clk 0:02:40.1]} 19. exd6 {[%clk 0:02:26]}
19... cxd6 {[%clk 0:02:39.1]} 20. Rad1 {[%clk 0:02:25.3]} 20... Qg6 {[%clk
0:02:37.4]} 21. b3 {[%clk 0:02:24.4]} 21... b5 {[%clk 0:02:37.5]} 22. Rd4 {[%clk
0:02:23.2]} 22... h5 {[%clk 0:02:36.9]} 23. c4 {[%clk 0:02:22.4]} 23... bxc4
{[%clk 0:02:37.1]} 24. bxc4 {[%clk 0:02:23.3]} 24... Be6 {[%clk 0:02:37.4]} 25.
Rxd6 {[%clk 0:02:21.9]} 25... Rc8 {[%clk 0:02:33.1]} 26. Rd4 {[%clk 0:02:18.5]}
26... c5 {[%clk 0:02:32]} 27. Rd2 {[%clk 0:02:17.2]} 27... Qg5 {[%clk
0:02:25.7]} 28. f4 {[%clk 0:02:12.3]} 28... Qg6 {[%clk 0:02:25.3]} 29. Rc1
{[%clk 0:02:07.7]} 29... Qg4 {[%clk 0:02:22.8]} 30. Rd3 {[%clk 0:01:59.3]} 30...
h4 {[%clk 0:02:22.8]} 31. h3 {[%clk 0:01:59.6]} 31... Qg6 {[%clk 0:02:22.3]} 32.
f5 {[%clk 0:01:57.4]} 32... Bxf5 {[%clk 0:02:17]} 33. Rd6 {[%clk 0:01:57.5]}
33... Qxg3 {[%clk 0:02:17]} 0-1

[Event "Early-Titled-Tuesday-Blitz-October-03-2023"]
[Site "Chess.com"]
[Date "2023.10.03"]
[Round "11"]
[White "Henryk_S"]
[Black "Doudou2015"]
[Result "1-0"]
[WhiteElo "2152"]
[BlackElo "2156"]
[TimeControl "180+1"]
[EndTime "10:03:54 PDT"]
[Termination "Henryk_S won by resignation"]

1. e4 {[%clk 0:03:00.9]} 1... e5 {[%clk 0:02:59.4]} 2. Nf3 {[%clk 0:03:00.4]}
2... Nc6 {[%clk 0:02:59.5]} 3. Nc3 {[%clk 0:03:00.3]} 3... Nf6 {[%clk
0:02:59.3]} 4. Bb5 {[%clk 0:02:59.6]} 4... Bb4 {[%clk 0:02:48.4]} 5. O-O {[%clk
0:02:57.9]} 5... Bxc3 {[%clk 0:02:46.7]} 6. dxc3 {[%clk 0:02:55]} 6... d6 {[%clk
0:02:44.7]} 7. Bg5 {[%clk 0:02:35]} 7... h6 {[%clk 0:02:39.4]} 8. Bh4 {[%clk
0:02:30.9]} 8... g5 {[%clk 0:02:39]} 9. Bg3 {[%clk 0:02:28.5]} 9... Nh5 {[%clk
0:02:39.6]} 10. Nxe5 {[%clk 0:02:19]} 10... Nxg3 {[%clk 0:02:05]} 11. Nxc6
{[%clk 0:02:15.4]} 11... bxc6 {[%clk 0:02:04.6]} 12. Bxc6+ {[%clk 0:02:14.2]}
12... Bd7 {[%clk 0:02:05.1]} 13. Bxd7+ {[%clk 0:02:03.7]} 13... Qxd7 {[%clk
0:02:04.6]} 14. hxg3 {[%clk 0:01:58.7]} 14... h5 {[%clk 0:02:00.7]} 15. Qd5
{[%clk 0:01:56.8]} 15... Rb8 {[%clk 0:01:48]} 16. Qxg5 {[%clk 0:01:54.8]} 16...
Rxb2 {[%clk 0:01:43.9]} 17. Rab1 {[%clk 0:01:48.6]} 1-0

[Event "Early-Titled-Tuesday-Blitz-October-03-2023"]
[Site "Chess.com"]
[Date "2023.10.03"]
[Round "11"]
[White "Lady_Nika"]
[Black "ploxoi"]
[Result "1-0"]
[WhiteElo "2536"]
[BlackElo "2456"]
[TimeControl "180+1"]
[EndTime "10:04:07 PDT"]
[Termination "Lady_Nika won by checkmate"]

1. e4 {[%clk 0:03:00.9]} 1... c5 {[%clk 0:02:59.8]} 2. Nc3 {[%clk 0:03:01]} 2...
e6 {[%clk 0:02:59.6]} 3. g3 {[%clk 0:03:01.2]} 3... Nc6 {[%clk 0:02:59.7]} 4.
Bg2 {[%clk 0:03:01.3]} 4... g6 {[%clk 0:03:00.3]} 5. d3 {[%clk 0:03:01.1]} 5...
Bg7 {[%clk 0:03:00.7]} 6. Be3 {[%clk 0:03:01.4]} 6... Nd4 {[%clk 0:03:00.5]} 7.
Rb1 {[%clk 0:03:00.6]} 7... Ne7 {[%clk 0:03:00.5]} 8. Nce2 {[%clk 0:03:00.7]}
8... O-O {[%clk 0:02:55.9]} 9. c3 {[%clk 0:02:58.3]} 9... Nxe2 {[%clk
0:02:55.4]} 10. Nxe2 {[%clk 0:02:58.7]} 10... d6 {[%clk 0:02:53.3]} 11. O-O
{[%clk 0:02:58.8]} 11... Rb8 {[%clk 0:02:48.5]} 12. f4 {[%clk 0:02:58.5]} 12...
b5 {[%clk 0:02:47.6]} 13. a3 {[%clk 0:02:56.2]} 13... a5 {[%clk 0:02:47.3]} 14.
g4 {[%clk 0:02:54.9]} 14... f5 {[%clk 0:02:46.7]} 15. Ng3 {[%clk 0:02:53.2]}
15... Bb7 {[%clk 0:02:42.8]} 16. Qe2 {[%clk 0:02:51.1]} 16... b4 {[%clk
0:02:39.1]} 17. axb4 {[%clk 0:02:49.5]} 17... axb4 {[%clk 0:02:39.5]} 18. c4
{[%clk 0:02:49.2]} 18... Ra8 {[%clk 0:02:34.3]} 19. Kh1 {[%clk 0:02:49.1]} 19...
Ra2 {[%clk 0:02:33]} 20. Rg1 {[%clk 0:02:48.9]} 20... Qa8 {[%clk 0:02:32.1]} 21.
h4 {[%clk 0:02:46.1]} 21... Nc6 {[%clk 0:01:41.9]} 22. gxf5 {[%clk 0:02:42.7]}
22... exf5 {[%clk 0:01:40.1]} 23. exf5 {[%clk 0:02:42.9]} 23... gxf5 {[%clk
0:01:32.5]} 24. Bd5+ {[%clk 0:02:42.9]} 24... Kh8 {[%clk 0:01:31.9]} 25. Qg2
{[%clk 0:02:42.9]} 25... Nd8 {[%clk 0:01:27]} 26. Nxf5 {[%clk 0:02:34.8]} 26...
Bxd5 {[%clk 0:01:18]} 27. cxd5 {[%clk 0:02:33.8]} 27... Bxb2 {[%clk 0:01:11]}
28. Rxb2 {[%clk 0:02:31]} 28... Rxb2 {[%clk 0:01:10.3]} 29. Qg7# {[%clk
0:02:30.6]} 1-0

[Event "Early-Titled-Tuesday-Blitz-October-03-2023"]
[Site "Chess.com"]
[Date "2023.10.03"]
[Round "11"]
[White "ljuks68"]
[Black "APOKALIPSA13"]
[Result "0-1"]
[WhiteElo "2376"]
[BlackElo "2178"]
[TimeControl "180+1"]
[EndTime "10:05:04 PDT"]
[Termination "APOKALIPSA13 won by resignation"]

1. e4 {[%clk 0:02:57.4]} 1... e5 {[%clk 0:03:00.9]} 2. Nf3 {[%clk 0:02:56.7]}
2... d5 {[%clk 0:03:01.1]} 3. exd5 {[%clk 0:02:54.2]} 3... e4 {[%clk 0:03:01.4]}
4. Qe2 {[%clk 0:02:54.6]} 4... Nf6 {[%clk 0:02:59]} 5. d3 {[%clk 0:02:53.5]}
5... Qxd5 {[%clk 0:02:58.8]} 6. Nbd2 {[%clk 0:02:51.2]} 6... Be7 {[%clk
0:02:58.3]} 7. dxe4 {[%clk 0:02:42.8]} 7... Qc6 {[%clk 0:02:58]} 8. Qb5 {[%clk
0:02:40.1]} 8... O-O {[%clk 0:02:57.7]} 9. Qxc6 {[%clk 0:02:39.8]} 9... Nxc6
{[%clk 0:02:58.6]} 10. c3 {[%clk 0:02:31.2]} 10... Re8 {[%clk 0:02:54.4]} 11.
Bd3 {[%clk 0:02:31.1]} 11... Bg4 {[%clk 0:02:49.6]} 12. O-O {[%clk 0:02:30.8]}
12... Rad8 {[%clk 0:02:47.9]} 13. Bc2 {[%clk 0:02:30.3]} 13... Bd6 {[%clk
0:02:40.8]} 14. Re1 {[%clk 0:02:27.2]} 14... b5 {[%clk 0:02:34.1]} 15. Nf1
{[%clk 0:02:09.7]} 15... Bxf3 {[%clk 0:02:27.3]} 16. gxf3 {[%clk 0:02:09.1]}
16... Ne5 {[%clk 0:02:25.8]} 17. Kg2 {[%clk 0:02:00.8]} 17... Nh5 {[%clk
0:02:14.7]} 18. f4 {[%clk 0:01:56.3]} 18... Ng6 {[%clk 0:02:10.9]} 19. f5 {[%clk
0:01:55.5]} 19... Nhf4+ {[%clk 0:02:05.5]} 20. Kf3 {[%clk 0:01:52.2]} 20... Nh4+
{[%clk 0:02:02]} 21. Kg4 {[%clk 0:01:40.8]} 21... Nhg2 {[%clk 0:01:26.6]} 22.
Ng3 {[%clk 0:01:06]} 22... Nxe1 {[%clk 0:01:21.7]} 0-1

[Event "Early-Titled-Tuesday-Blitz-October-03-2023"]
[Site "Chess.com"]
[Date "2023.10.03"]
[Round "11"]
[White "LaPiToB"]
[Black "UK_23"]
[Result "1-0"]
[WhiteElo "2299"]
[BlackElo "2401"]
[TimeControl "180+1"]
[EndTime "10:05:17 PDT"]
[Termination "LaPiToB won by resignation"]

1. d4 {[%clk 0:02:56.8]} 1... d5 {[%clk 0:02:59.2]} 2. c4 {[%clk 0:02:56.4]}
2... e6 {[%clk 0:02:59.8]} 3. Nc3 {[%clk 0:02:56.6]} 3... Nf6 {[%clk 0:03:00.4]}
4. cxd5 {[%clk 0:02:57]} 4... exd5 {[%clk 0:03:01.3]} 5. Bg5 {[%clk 0:02:56.9]}
5... Be7 {[%clk 0:03:01.9]} 6. e3 {[%clk 0:02:56.9]} 6... O-O {[%clk 0:03:02.5]}
7. Bd3 {[%clk 0:02:57.1]} 7... Re8 {[%clk 0:03:02.7]} 8. Nge2 {[%clk 0:02:56.4]}
8... c6 {[%clk 0:03:01.3]} 9. O-O {[%clk 0:02:55.7]} 9... h6 {[%clk 0:03:01.1]}
10. Bh4 {[%clk 0:02:55.2]} 10... Nbd7 {[%clk 0:03:01]} 11. Qc2 {[%clk
0:02:54.8]} 11... b5 {[%clk 0:02:57.9]} 12. a3 {[%clk 0:02:50.1]} 12... a5
{[%clk 0:02:57.9]} 13. f3 {[%clk 0:02:48.2]} 13... Bb7 {[%clk 0:02:57.1]} 14. e4
{[%clk 0:02:45.2]} 14... dxe4 {[%clk 0:02:56.8]} 15. fxe4 {[%clk 0:02:44.8]}
15... Ng4 {[%clk 0:02:56.6]} 16. Bf2 {[%clk 0:02:30.9]} 16... b4 {[%clk
0:02:52.5]} 17. Na4 {[%clk 0:02:21.9]} 17... c5 {[%clk 0:02:52]} 18. dxc5 {[%clk
0:02:16.6]} 18... Nde5 {[%clk 0:02:47]} 19. Bb5 {[%clk 0:02:15.3]} 19... Bc6
{[%clk 0:02:40.7]} 20. Rad1 {[%clk 0:02:08.4]} 20... Qc7 {[%clk 0:02:35.5]} 21.
Bxc6 {[%clk 0:02:02.8]} 21... Qxc6 {[%clk 0:02:36.4]} 22. Nd4 {[%clk 0:01:55.9]}
22... Qg6 {[%clk 0:02:35.3]} 23. Qb3 {[%clk 0:01:35.5]} 23... Bg5 {[%clk
0:02:27]} 24. Nf5 {[%clk 0:01:23]} 24... Nxf2 {[%clk 0:02:20.9]} 25. Rxf2 {[%clk
0:01:22.1]} 25... Ng4 {[%clk 0:02:21.5]} 26. Re2 {[%clk 0:01:17.7]} 26... Rxe4
{[%clk 0:02:10.9]} 27. Rxe4 {[%clk 0:01:10.3]} 27... Qxf5 {[%clk 0:02:11.3]} 28.
Qf3 {[%clk 0:01:00.6]} 28... Qxf3 {[%clk 0:01:45.3]} 29. gxf3 {[%clk 0:01:01.5]}
29... Nf6 {[%clk 0:01:40.3]} 30. Rc4 {[%clk 0:01:01.3]} 30... Be3+ {[%clk
0:01:35]} 31. Kg2 {[%clk 0:01:01.1]} 31... bxa3 {[%clk 0:01:35.9]} 32. bxa3
{[%clk 0:01:00.9]} 32... g5 {[%clk 0:01:33.2]} 33. c6 {[%clk 0:01:00.9]} 33...
Rc8 {[%clk 0:01:32.7]} 34. c7 {[%clk 0:01:00.6]} 34... Nd7 {[%clk 0:01:33.1]}
35. Rxd7 {[%clk 0:01:00.2]} 1-0

[Event "Early-Titled-Tuesday-Blitz-October-03-2023"]
[Site "Chess.com"]
[Date "2023.10.03"]
[Round "11"]
[White "ChampStan"]
[Black "JiiHart"]
[Result "0-1"]
[WhiteElo "2105"]
[BlackElo "2190"]
[TimeControl "180+1"]
[EndTime "10:05:21 PDT"]
[Termination "JiiHart won by resignation"]

1. e4 {[%clk 0:03:00.9]} 1... e5 {[%clk 0:02:58.6]} 2. Nf3 {[%clk 0:03:00.6]}
2... Nf6 {[%clk 0:02:58.9]} 3. Nxe5 {[%clk 0:02:59.6]} 3... d6 {[%clk
0:02:58.6]} 4. Nf3 {[%clk 0:02:59.2]} 4... Nxe4 {[%clk 0:02:58.9]} 5. d4 {[%clk
0:02:58.8]} 5... d5 {[%clk 0:02:59.2]} 6. Bd3 {[%clk 0:02:58.6]} 6... Bg4 {[%clk
0:02:58.5]} 7. O-O {[%clk 0:02:58.4]} 7... Be7 {[%clk 0:02:57.7]} 8. h3 {[%clk
0:02:57.8]} 8... Bh5 {[%clk 0:02:56.8]} 9. Re1 {[%clk 0:02:56]} 9... Nc6 {[%clk
0:02:52.9]} 10. Bxe4 {[%clk 0:02:48.8]} 10... dxe4 {[%clk 0:02:52.2]} 11. Rxe4
{[%clk 0:02:49.7]} 11... f5 {[%clk 0:02:40.2]} 12. Rf4 {[%clk 0:02:40.5]} 12...
O-O {[%clk 0:02:36.6]} 13. d5 {[%clk 0:02:32.4]} 13... Ne5 {[%clk 0:02:27.8]}
14. Nbd2 {[%clk 0:02:16.9]} 14... Bg5 {[%clk 0:02:26.1]} 15. Ra4 {[%clk
0:01:55.5]} 15... Bxd2 {[%clk 0:02:24.2]} 16. Bxd2 {[%clk 0:01:48.4]} 16...
Nxf3+ {[%clk 0:02:19]} 17. gxf3 {[%clk 0:01:47.1]} 17... Qxd5 {[%clk 0:02:17.2]}
18. Rf4 {[%clk 0:01:43.3]} 18... g5 {[%clk 0:02:00.9]} 19. Ra4 {[%clk 0:01:21]}
19... Bxf3 {[%clk 0:01:59.7]} 20. Qc1 {[%clk 0:01:15.8]} 20... Bh1 {[%clk
0:01:50.1]} 21. Kf1 {[%clk 0:00:56.1]} 21... Rae8 {[%clk 0:01:30.8]} 22. Be3
{[%clk 0:00:45.9]} 22... f4 {[%clk 0:01:23.7]} 0-1